fUST/lending_fUST_20240601
["ID","MTS","AMOUNT","RATE_DAILY","PERIOD"]
[328344937,1717198232776,-500.0,0.00024399,2]
[328344939,1717198232785,-500.0,0.00024399,2]
[328344941,1717198232795,-327.54913324,0.00024399,2]
[328344943,1717198232803,-500.0,0.00024399,2]
[328344945,1717198232813,-500.0,0.00024399,2]
[328344948,1717198232822,-761.75049726,0.000244,2]
[328344949,1717198232831,-620.4969246,0.00024431,2]
[328344952,1717198232841,-256.48109456,0.0002469,2]
[328344954,1717198232851,-156.83,0.00024865,3]
[328344956,1717198232861,-940.09,0.00024865,3]
[328344958,1717198232870,-151.0,0.00024876,2]
[328344960,1717198232879,-228.81451,0.00024876,2]
[328344962,1717198232888,-154.876099,0.00024876,2]
[328344964,1717198232897,-719.208436,0.00024876,2]
[328344966,1717198232906,-719.208436,0.00024876,2]
[328344968,1717198232916,-719.208436,0.00024876,2]
[328344970,1717198232925,-719.208436,0.00024876,2]
[328344972,1717198232934,-719.208436,0.00024876,2]
[328344974,1717198232943,-719.208436,0.00024876,2]
[328344976,1717198232952,-719.208436,0.00024876,2]
[328344978,1717198232962,-719.208436,0.00024876,2]
[328344980,1717198232971,-719.208436,0.00024876,2]
[328344982,1717198232981,-719.208436,0.00024876,2]
[328344984,1717198232990,-719.208436,0.00024876,2]
[328344986,1717198232999,-719.208436,0.00024876,2]
[328344988,1717198233008,-719.208436,0.00024876,2]
[328344990,1717198233017,-719.208436,0.00024876,2]
[328344992,1717198233026,-719.208436,0.00024876,2]
[328344994,1717198233035,-719.208436,0.00024876,2]
[328344996,1717198233044,-719.208436,0.00024876,2]
[328344998,1717198233054,-719.208436,0.00024876,2]
[328345000,1717198233063,-719.208436,0.00024876,2]
[328345002,1717198233072,-719.20843625,0.00024876,2]
[328345004,1717198233081,-153.0,0.00024877,2]
[328345006,1717198233090,-153.0,0.00024877,2]
[328345008,1717198233099,-153.0,0.00024877,2]
[328345010,1717198233108,-401.51088538,0.00025204,2]
[328345012,1717198233118,-3830.86457503,0.000253,2]
[328345014,1717198233127,-210.120757,0.000253,2]
[328345016,1717198233136,-210.120757,0.000253,2]
[328345018,1717198233145,-151.0,0.000253,2]
[328345020,1717198233155,-151.0,0.000253,2]
[328345022,1717198233164,-406.454202,0.000253,2]
[328345024,1717198233174,-406.454202,0.000253,2]
[328345026,1717198233183,-235.243106,0.000253,2]
[328345028,1717198233194,-235.243106,0.000253,2]
[328345029,1717198233203,-152.130202,0.000253,2]
[328345032,1717198233213,-442.352658,0.000253,2]
[328345034,1717198233223,-442.352658,0.000253,2]
[328345036,1717198233232,-156.0,0.00025775,2]
[328345037,1717198233241,-496.0,0.00025777,2]
[328345039,1717198233250,-5000.0,0.00026,2]
[328345042,1717198233259,-428.0,0.00026,2]
[328345044,1717198233268,-428.0,0.00026,2]
[328345046,1717198233281,-428.0,0.00026,2]
[328345048,1717198233291,-429.88,0.00026,2]
[328345050,1717198233300,-160.617,0.00026215,2]
[328345052,1717198233310,-150.57108519,0.00026308,2]
[328345054,1717198233320,-1008.44877901,0.00026473,2]
[328345056,1717198233331,-3124.834957,0.000265,2]
[328345058,1717198233340,-151.0,0.000265,2]
[328345059,1717198233349,-487.981221,0.000265,2]
[328345060,1717198233360,-487.981221,0.000265,2]
[328345061,1717198233370,-151.0,0.000265,2]
[328345063,1717198233380,-151.0,0.000265,2]
[328345065,1717198233389,-151.0,0.000265,2]
[328345067,1717198233399,-151.0,0.000265,2]
[328345068,1717198233408,-452.448181,0.000265,2]
[328345071,1717198233421,-452.448181,0.000265,2]
[328345073,1717198233430,-244.760499,0.000265,2]
[328345075,1717198233439,-151.0,0.000265,2]
[328345076,1717198233448,-150.176785,0.000265,2]
[328345078,1717198233457,-151.0,0.000265,2]
[328345080,1717198233467,-151.0,0.000265,2]
[328345082,1717198233476,-210.120757,0.000265,2]
[328345084,1717198233485,-210.120757,0.000265,2]
[328345085,1717198233494,-151.0,0.000265,2]
[328345087,1717198233503,-151.0,0.000265,2]
[328345089,1717198233514,-406.454202,0.000265,2]
[328345091,1717198233524,-406.454202,0.000265,2]
[328345092,1717198233533,-235.243106,0.000265,2]
[328345093,1717198233543,-235.243106,0.000265,2]
[328345094,1717198233552,-442.352658,0.000265,2]
[328345096,1717198233561,-442.352658,0.000265,2]
[328345098,1717198233571,-442.352658,0.000265,2]
[328345100,1717198233580,-442.352658,0.000265,2]
[328345102,1717198233590,-1000.0,0.000265,2]
[328345104,1717198233599,-210.120757,0.00026562,2]
[328345106,1717198233608,-210.120757,0.00026562,2]
[328345108,1717198233618,-151.0,0.00026562,2]
[328345110,1717198233628,-151.0,0.00026562,2]
[328345112,1717198233637,-406.454202,0.00026562,2]
[328345114,1717198233647,-406.454202,0.00026562,2]
[328345116,1717198233656,-235.243106,0.00026562,2]
[328345118,1717198233667,-235.243106,0.00026562,2]
[328345120,1717198233676,-151.0,0.00026563,2]
[328345122,1717198233686,-151.0,0.00026563,2]
[328345124,1717198233696,-452.448181,0.00026563,2]
[328345126,1717198233707,-187.38789967,0.00026563,2]
[328345360,1717198238492,-1900.92798858,0.00018799,2]
[328345361,1717198238502,-296.41201142,0.000211,2]
[328345531,1717198243937,-150.0,0.0002055,2]
[328345532,1717198243947,-73.50037055,0.000211,2]
[328345533,1717198243957,-369.91238197,0.000234,2]
[328345534,1717198243967,-500.0,0.00024399,2]
[328345535,1717198243976,-500.0,0.00024399,2]
[328345536,1717198243985,-500.0,0.00024399,2]
[328345537,1717198243995,-500.0,0.00024399,2]
[328345538,1717198244004,-500.0,0.00024399,2]
[328345539,1717198244013,-500.0,0.00024399,2]
[328345540,1717198244023,-394.660642,0.00024399,2]
[328345541,1717198244032,-500.0,0.00024399,2]
[328345542,1717198244041,-500.0,0.00024399,2]
[328345543,1717198244050,-500.0,0.00024399,2]
[328345544,1717198244059,-564.89210782,0.00024399,2]
[328345545,1717198244068,-500.0,0.00024399,2]
[328345546,1717198244078,-500.0,0.00024399,2]
[328345547,1717198244087,-500.0,0.00024399,2]
[328345548,1717198244096,-500.0,0.00024399,2]
[328345549,1717198244107,-500.0,0.00024399,2]
[328345550,1717198244117,-500.0,0.00024399,2]
[328345551,1717198244126,-500.0,0.00024399,2]
[328345552,1717198244135,-500.0,0.00024399,2]
[328345553,1717198244146,-500.0,0.00024399,2]
[328345554,1717198244155,-500.0,0.00024399,2]
[328345555,1717198244164,-500.0,0.00024399,2]
[328345556,1717198244174,-500.0,0.00024399,2]
[328345557,1717198244185,-500.0,0.00024399,2]
[328345558,1717198244194,-500.0,0.00024399,2]
[328345559,1717198244203,-500.0,0.00024399,2]
[328345560,1717198244212,-500.0,0.00024399,2]
[328345561,1717198244222,-500.0,0.00024399,2]
[328345562,1717198244231,-500.0,0.00024399,2]
[328345563,1717198244240,-500.0,0.00024399,2]
[328345564,1717198244249,-500.0,0.00024399,2]
[328345565,1717198244258,-500.0,0.00024399,2]
[328345566,1717198244267,-500.0,0.00024399,2]
[328345567,1717198244277,-500.0,0.00024399,2]
[328345568,1717198244290,-500.0,0.00024399,2]
[328345569,1717198244299,-500.0,0.00024399,2]
[328345570,1717198244308,-500.0,0.00024399,2]
[328345571,1717198244318,-500.0,0.00024399,2]
[328345572,1717198244329,-500.0,0.00024399,2]
[328345573,1717198244338,-500.0,0.00024399,2]
[328345574,1717198244347,-500.0,0.00024399,2]
[328345575,1717198244359,-120.35435158,0.00024399,2]
[328345582,1717198244823,-379.64564842,0.00024399,2]
[328345583,1717198244835,-500.0,0.00024399,2]
[328345584,1717198244846,-500.0,0.00024399,2]
[328345585,1717198244856,-500.0,0.00024399,2]
[328345586,1717198244866,-500.0,0.00024399,2]
[328345587,1717198244877,-500.0,0.00024399,2]
[328345588,1717198244887,-500.0,0.00024399,2]
[328345589,1717198244897,-500.0,0.00024399,2]
[328345590,1717198244907,-500.0,0.00024399,2]
[328345591,1717198244917,-500.0,0.00024399,2]
[328345592,1717198244928,-500.0,0.00024399,2]
[328345593,1717198244938,-429.78595949,0.00024399,2]
[328345594,1717198244947,-503.87083447,0.00024399,2]
[328345595,1717198244957,-456.20548184,0.00024399,2]
[328345603,1717198246341,-43.79451816,0.00024399,2]
[328345606,1717198246351,-500.0,0.00024399,2]
[328345608,1717198246362,-500.0,0.00024399,2]
[328345609,1717198246372,-500.0,0.00024399,2]
[328345612,1717198246381,-369.91238197,0.000257,2]
[328345613,1717198246390,-265.06028133,0.00026563,2]
[328345616,1717198246400,-151.0,0.00026563,2]
[328345617,1717198246409,-132.48142696,0.00026563,2]
[328345620,1717198260564,169.83100091,0.000136,2]
[328345622,1717198281340,371.96487364,9.999e-05,2]
[328345623,1717198295094,1500.73112716,9.999e-05,2]
[328345624,1717198302235,1098.98243404,0.00015,2]
[328345625,1717198316589,155.0,9.999e-05,2]
[328345626,1717198322045,647.89242031,9.999e-05,2]
[328345627,1717198322076,397.13989738,9.999e-05,2]
[328345628,1717198322484,934.03179403,9.999e-05,2]
[328345629,1717198328268,208.05401403,9.999e-05,2]
[328345630,1717198337990,155.0,9.999e-05,2]
[328345631,1717198348386,944.39208909,0.00015,2]
[328345632,1717198353141,155.0,9.999e-05,2]
[328345633,1717198364916,2764.0,0.000275,120]
[328345634,1717198389991,231.2033584,9.999e-05,2]
[328345635,1717198408385,155.0,9.999e-05,2]
[328345636,1717198408714,514.70445372,9.999e-05,2]
[328345637,1717198431288,155.0,9.999e-05,2]
[328345648,1717198665944,-1352.96492829,0.0002,2]
[328345649,1717198665964,-1352.96492829,0.00020363,2]
[328345650,1717198665977,-294.07014342,0.00020363,2]
[328345651,1717198678883,-1000.0,0.00020363,2]
[328345652,1717198688461,-420.22750727,0.00020363,2]
[328345653,1717198688483,-250.0,0.00020365,2]
[328345815,1717199432244,-351.323325,0.00019153,2]
[328345817,1717199432304,-2715.93925398,0.00019153,2]
[328345818,1717199432314,-501.834372,0.00019154,2]
[328345819,1717199432323,-3169.8505211,0.00019189,2]
[328345820,1717199432332,-162.215147,0.00019382,2]
[328345821,1717199432439,-1648.06572404,0.00019628,2]
[328345872,1717199438371,-23241.93427596,0.00019628,2]
[328345874,1717199438381,-253.3063261,0.00020265,2]
[328345877,1717199438390,-224.83709056,0.00020365,2]
[328345879,1717199438399,-1003.2388309,0.00020573,2]
[328345881,1717199438409,-30398.85398122,0.00020574,2]
[328345883,1717199438418,-589.32356035,0.00020575,2]
[328345885,1717199438427,-1531.7237294,0.00021,2]
[328345888,1717199438449,-2069.79045025,0.00021071,2]
[328345890,1717199438459,-168.43044,0.00021918,2]
[328345893,1717199438470,-253.30632603,0.00022356,2]
[328345894,1717199438480,-1400.44482695,0.00022436,2]
[328345897,1717199438492,-165.308995,0.00023239,2]
[328345899,1717199438501,-1400.44482691,0.00023677,2]
[328345901,1717199438511,-22884.70084567,0.00024396,2]
[328345903,1717199438520,-627.34045444,0.00024396,2]
[328345905,1717199438529,-500.0,0.00024396,2]
[328345907,1717199438540,-262.82548622,0.00024396,2]
[328345909,1717199438550,-500.0,0.00024396,2]
[328345917,1717199438701,-500.0,0.00024396,2]
[328345918,1717199438711,-500.0,0.00024396,2]
[328345919,1717199438720,-500.0,0.00024396,2]
[328345920,1717199438730,-500.0,0.00024396,2]
[328345921,1717199438740,-500.0,0.00024396,2]
[328345922,1717199438749,-500.0,0.00024396,2]
[328345923,1717199438758,-500.0,0.00024396,2]
[328345924,1717199438767,-585.32310621,0.00024396,2]
[328345925,1717199438776,-500.0,0.00024396,2]
[328345926,1717199438786,-500.0,0.00024396,2]
[328345927,1717199438795,-500.0,0.00024396,2]
[328345928,1717199438804,-634.80974547,0.00024396,2]
[328345929,1717199438814,-562.85726386,0.00024396,2]
[328345930,1717199438823,-500.0,0.00024396,2]
[328345931,1717199438832,-500.0,0.00024396,2]
[328345932,1717199438841,-500.0,0.00024396,2]
[328345933,1717199438851,-481.58084074,0.00024396,2]
[328345934,1717199438860,-500.0,0.00024396,2]
[328345935,1717199438869,-500.0,0.00024396,2]
[328345936,1717199438878,-500.0,0.00024396,2]
[328345937,1717199438888,-500.0,0.00024396,2]
[328345938,1717199438898,-500.0,0.00024396,2]
[328345939,1717199438907,-500.0,0.00024396,2]
[328345940,1717199438916,-500.0,0.00024396,2]
[328345941,1717199438926,-500.0,0.00024396,2]
[328345942,1717199438935,-500.0,0.00024396,2]
[328345943,1717199438944,-500.0,0.00024396,2]
[328345944,1717199438954,-500.0,0.00024396,2]
[328345945,1717199438964,-500.0,0.00024396,2]
[328345946,1717199438973,-500.0,0.00024396,2]
[328345947,1717199438983,-500.0,0.00024396,2]
[328345948,1717199438992,-500.0,0.00024396,2]
[328345949,1717199439003,-500.0,0.00024396,2]
[328345950,1717199439012,-500.0,0.00024396,2]
[328345951,1717199439021,-500.0,0.00024396,2]
[328345952,1717199439031,-500.0,0.00024396,2]
[328345953,1717199439040,-500.0,0.00024396,2]
[328345954,1717199439049,-500.0,0.00024396,2]
[328345955,1717199439058,-500.0,0.00024396,2]
[328345956,1717199439067,-500.0,0.00024396,2]
[328345957,1717199439077,-500.0,0.00024396,2]
[328345958,1717199439086,-500.0,0.00024396,2]
[328345959,1717199439095,-500.0,0.00024396,2]
[328345960,1717199439105,-500.0,0.00024396,2]
[328345961,1717199439113,-500.0,0.00024396,2]
[328345962,1717199439123,-500.0,0.00024396,2]
[328345963,1717199439132,-500.0,0.00024396,2]
[328345964,1717199439141,-500.0,0.00024396,2]
[328345965,1717199439150,-500.0,0.00024396,2]
[328345966,1717199439159,-500.0,0.00024396,2]
[328345967,1717199439169,-500.0,0.00024396,2]
[328345968,1717199439178,-500.0,0.00024396,2]
[328345969,1717199439187,-151.0,0.00024397,2]
[328345970,1717199439196,-151.0,0.00024397,2]
[328345971,1717199439205,-336.046492,0.00024397,2]
[328345972,1717199439214,-336.046492,0.00024397,2]
[328345973,1717199439226,-336.046492,0.00024397,2]
[328345974,1717199439236,-336.046492,0.00024397,2]
[328345975,1717199439245,-336.046492,0.00024397,2]
[328345976,1717199439254,-336.046492,0.00024397,2]
[328345977,1717199439269,-151.0,0.00024397,2]
[328345978,1717199439279,-151.0,0.00024397,2]
[328345979,1717199439288,-151.0,0.00024397,2]
[328345980,1717199439297,-207.48453,0.00024398,2]
[328345981,1717199439306,-207.48453,0.00024398,2]
[328345982,1717199439316,-151.0,0.00024398,2]
[328345983,1717199439325,-151.0,0.00024398,2]
[328345984,1717199439334,-207.48453,0.00024398,2]
[328345985,1717199439344,-207.48453,0.00024398,2]
[328345986,1717199439353,-301.840569,0.00024398,2]
[328345987,1717199439364,-151.0,0.00024398,2]
[328345988,1717199439374,-151.0,0.00024398,2]
[328345989,1717199439383,-365.637199,0.00024398,2]
[328345990,1717199439393,-365.637199,0.00024398,2]
[328345991,1717199439402,-365.637199,0.00024398,2]
[328345992,1717199439412,-365.637199,0.00024398,2]
[328345993,1717199439421,-164.670174,0.00024398,2]
[328345994,1717199439431,-164.670174,0.00024398,2]
[328345995,1717199439440,-164.670174,0.00024398,2]
[328345996,1717199439450,-164.670174,0.00024398,2]
[328345997,1717199439461,-647.18243,0.00024398,2]
[328345998,1717199439471,-647.18243,0.00024398,2]
[328345999,1717199439481,-647.18243,0.00024398,2]
[328346000,1717199439491,-151.0,0.00024398,2]
[328346001,1717199439500,-151.0,0.00024398,2]
[328346002,1717199439510,-151.0,0.00024398,2]
[328346003,1717199439520,-647.18243,0.00024398,2]
[328346004,1717199439530,-647.18243,0.00024398,2]
[328346005,1717199439539,-647.18243,0.00024398,2]
[328346006,1717199439548,-151.0,0.00024398,2]
[328346007,1717199439558,-151.0,0.00024398,2]
[328346008,1717199439567,-151.0,0.00024398,2]
[328346009,1717199439576,-151.0,0.00024398,2]
[328346010,1717199439585,-151.0,0.00024398,2]
[328346011,1717199439595,-151.0,0.00024398,2]
[328346012,1717199439604,-151.0,0.00024398,2]
[328346013,1717199439613,-151.0,0.00024398,2]
[328346014,1717199439627,-151.0,0.00024398,2]
[328346015,1717199439637,-151.0,0.00024398,2]
[328346016,1717199439646,-270.105906,0.00024398,2]
[328346017,1717199439655,-151.0,0.00024398,2]
[328346018,1717199439664,-151.0,0.00024399,2]
[328346019,1717199439673,-215.289862,0.00024399,2]
[328346020,1717199439683,-151.0,0.00024399,2]
[328346021,1717199439693,-151.0,0.00024399,2]
[328346022,1717199439702,-151.0,0.00024399,2]
[328346023,1717199439711,-151.0,0.00024399,2]
[328346024,1717199439721,-1355.447942,0.00024399,2]
[328346025,1717199439730,-1355.447942,0.00024399,2]
[328346026,1717199439740,-1355.447942,0.00024399,2]
[328346027,1717199439749,-1355.447942,0.00024399,2]
[328346028,1717199439760,-1355.447942,0.00024399,2]
[328346029,1717199439769,-1355.447942,0.00024399,2]
[328346030,1717199439778,-151.0,0.00024399,2]
[328346031,1717199439787,-151.0,0.00024399,2]
[328346032,1717199439797,-151.0,0.00024399,2]
[328346033,1717199439807,-151.0,0.00024399,2]
[328346034,1717199439816,-151.0,0.00024399,2]
[328346035,1717199439826,-236.795859,0.00024399,2]
[328346036,1717199439836,-151.0,0.00024399,2]
[328346037,1717199439845,-151.0,0.00024399,2]
[328346038,1717199439854,-151.0,0.00024399,2]
[328346039,1717199439864,-151.0,0.00024399,2]
[328346040,1717199439873,-151.0,0.00024399,2]
[328346041,1717199439882,-151.0,0.00024399,2]
[328346042,1717199439891,-151.0,0.00024399,2]
[328346043,1717199439901,-151.0,0.00024399,2]
[328346044,1717199439910,-151.0,0.00024399,2]
[328346045,1717199439998,-381.190325,0.00024399,2]
[328346046,1717199440008,-381.190325,0.00024399,2]
[328346047,1717199440017,-381.190325,0.00024399,2]
[328346048,1717199440026,-381.190325,0.00024399,2]
[328346049,1717199440036,-381.190325,0.00024399,2]
[328346050,1717199440045,-381.190325,0.00024399,2]
[328346051,1717199440054,-207.48453,0.00024399,2]
[328346052,1717199440063,-152.79884,0.00024399,2]
[328346053,1717199440072,-207.48453,0.00024399,2]
[328346054,1717199440082,-151.0,0.00024399,2]
[328346055,1717199440091,-365.637199,0.00024399,2]
[328346056,1717199440101,-365.637199,0.00024399,2]
[328346057,1717199440111,-164.670174,0.00024399,2]
[328346058,1717199440120,-164.670174,0.00024399,2]
[328346059,1717199440129,-647.18243,0.00024399,2]
[328346060,1717199440139,-151.0,0.00024399,2]
[328346061,1717199440148,-647.18243,0.00024399,2]
[328346062,1717199440158,-151.0,0.00024399,2]
[328346063,1717199440168,-151.0,0.00024399,2]
[328346064,1717199440177,-151.0,0.00024399,2]
[328346065,1717199440187,-336.046492,0.00024399,2]
[328346066,1717199440197,-336.046492,0.00024399,2]
[328346067,1717199440206,-151.0,0.00024399,2]
[328346068,1717199440216,-13744.049591,0.000244,2]
[328346069,1717199440227,-151.0,0.000244,2]
[328346070,1717199440238,-1355.447942,0.000244,2]
[328346071,1717199440247,-1355.447942,0.000244,2]
[328346072,1717199440257,-151.0,0.000244,2]
[328346073,1717199440267,-151.0,0.000244,2]
[328346074,1717199440276,-151.0,0.000244,2]
[328346075,1717199440285,-151.0,0.000244,2]
[328346076,1717199440294,-381.190325,0.000244,2]
[328346077,1717199440303,-381.190325,0.000244,2]
[328346078,1717199440312,-207.48453,0.000244,2]
[328346079,1717199440321,-207.48453,0.000244,2]
[328346080,1717199440330,-151.0,0.000244,2]
[328346081,1717199440338,-89.43054744,0.000244,2]
[328346557,1717199493200,1150.47439335,9.999e-05,2]
[328346558,1717199493233,3.28272088,9.999e-05,2]
[328346559,1717199523389,155.0,9.999e-05,2]
[328346561,1717199711812,514.70445372,9.999e-05,2]
[328346643,1717200632443,-3072.74110076,0.00017898,2]
[328346644,1717200632453,-150.0,0.000189,2]
[328346645,1717200632463,-523.49146573,0.00020575,2]
[328346646,1717200632472,-250.917186,0.00023974,2]
[328346647,1717200632481,-2939.41191001,0.00024251,2]
[328346648,1717200632502,-774.65,0.00024251,2]
[328346649,1717200632514,-517.59003066,0.00024251,2]
[328346650,1717200632524,-2656.86676978,0.00024254,2]
[328346657,1717200638444,-4598.2762932,0.00024254,2]
[328346658,1717200638501,-2700.99930082,0.00024254,2]
[328346659,1717200638511,-239.46208187,0.00024371,2]
[328346660,1717200638520,-4150.73863231,0.00024395,2]
[328346681,1717200642298,-1524.29,0.00024395,2]
[328346720,1717200646754,-2162.81833493,0.00024395,2]
[328346859,1717201590870,367.09,0.000151,2]
[328346864,1717201677995,155.0,0.000151,2]
[328346865,1717201693955,224.81538036,0.000151,2]
[328346942,1717202610298,3580.10744504,0.00014823,2]
[328346943,1717202610324,651.54449563,0.00014823,2]
[328346977,1717203032393,-1518.48172937,0.00015377,2]
[328347013,1717203043063,-1532.95180652,0.00015377,2]
[328347014,1717203043073,-154.0152566,0.000189,2]
[328347015,1717203043082,-1131.38258508,0.00023,2]
[328347016,1717203043091,-154.0152566,0.000239,2]
[328347017,1717203043100,-250.917186,0.00024239,2]
[328347018,1717203043110,-306.6323411,0.000243,2]
[328347019,1717203043119,-726.6795054,0.00024305,2]
[328347020,1717203043128,-404.96026001,0.00024395,2]
[328347021,1717203043137,-461.58335744,0.00024395,2]
[328347022,1717203043147,-300.9767746,0.000244,2]
[328347023,1717203043157,-761.75049726,0.000244,2]
[328347024,1717203043166,-401.51088538,0.00025,2]
[328347025,1717203043175,-154.5150693,0.00025478,2]
[328347026,1717203043185,-153.0,0.00025911,2]
[328347027,1717203043194,-230.2354797,0.00025911,2]
[328347028,1717203043204,-153.0,0.00025911,2]
[328347029,1717203043214,-153.0,0.00025911,2]
[328347030,1717203043223,-150.56303114,0.00026297,2]
[328347031,1717203043233,-239.5723,0.0002643,2]
[328347032,1717203043242,-160.0,0.000265,2]
[328347033,1717203043252,-3470.29673894,0.000265,2]
[328347048,1717203103683,2033.82676521,9.999e-05,2]
[328347049,1717203109613,563.50131482,9.999e-05,2]
[328347050,1717203121363,1098.98243404,0.00015,2]
[328347051,1717203133488,944.39208909,0.00015,2]
[328347052,1717203406668,1007.8902,0.00015,2]
[328347053,1717203423162,671.9268,0.00015,2]
[328347054,1717203445177,559.939,0.00015,2]
[328347055,1717203466003,291.728219,0.00015,2]
[328347056,1717203483177,291.728219,0.00015,2]
[328347057,1717203501179,291.728219,0.00015,2]
[328347058,1717203521192,291.728219,0.00015,2]
[328347059,1717203545186,291.728219,0.00015,2]
[328347060,1717203563187,291.728219,0.00015,2]
[328347061,1717203583282,291.728219,0.00015,2]
[328347062,1717203607382,291.728219,0.00015,2]
[328347064,1717203623193,291.728219,0.00015,2]
[328347065,1717203641191,291.728219,0.00015,2]
[328347066,1717203663200,442.35181,0.00015,2]
[328347091,1717203986256,659.07112983,9.999e-05,2]
[328347128,1717204232273,-459.54675454,0.00015377,2]
[328347130,1717204232283,-150.0,0.000189,2]
[328347132,1717204232292,-48.57992955,0.00023,2]
[328347135,1717204232304,-106.42007045,0.00023,2]
[328347137,1717204232313,-761.75049726,0.000244,2]
[328347139,1717204232322,-29.0227482,0.00024587,2]
[328347185,1717204238167,-1046.07912519,0.00024587,2]
[328347219,1717204242271,-342.80499812,0.00024587,2]
[328347251,1717204243307,-405.00871583,0.00024587,2]
[328347271,1717204243492,-3382.8,0.00024587,2]
[328347490,1717204246289,-16582.97692986,0.00024587,2]
[328347491,1717204246299,-351.1613848,0.00025759,2]
[328347492,1717204246309,-1000.0,0.00026262,2]
[328347493,1717204246320,-150.55766178,0.00026297,2]
[328347494,1717204246330,-1000.0,0.00026317,2]
[328347495,1717204246340,-1000.0,0.00026332,2]
[328347496,1717204246349,-9031.75452754,0.00026338,2]
[328347497,1717204246359,-1380.72611594,0.00026377,2]
[328347498,1717204246368,-1380.72611591,0.0002638,2]
[328347499,1717204246381,-500.0,0.00026382,2]
[328347500,1717204246391,-500.0,0.00026382,2]
[328347501,1717204246401,-507.52111206,0.00026382,2]
[328347502,1717204246411,-500.0,0.00026382,2]
[328347503,1717204246421,-26967.1,0.00026382,2]
[328347504,1717204246430,-500.0,0.00026382,2]
[328347505,1717204246440,-2556.46,0.00026382,2]
[328347506,1717204246450,-208.890863,0.00026382,2]
[328347507,1717204246459,-208.890863,0.00026382,2]
[328347508,1717204246470,-500.0,0.00026382,2]
[328347509,1717204246480,-500.0,0.00026382,2]
[328347510,1717204246489,-2052.23,0.00026382,2]
[328347511,1717204246499,-500.0,0.00026382,2]
[328347512,1717204246508,-151.0,0.00026382,2]
[328347513,1717204246518,-151.0,0.00026382,2]
[328347514,1717204246528,-1018.4,0.00026382,2]
[328347515,1717204246538,-1746.44,0.00026382,2]
[328347516,1717204246548,-1544.2,0.00026382,2]
[328347517,1717204246559,-1380.72611591,0.00026383,2]
[328347518,1717204246568,-151.0,0.00026385,2]
[328347519,1717204246579,-201.286739,0.00026385,2]
[328347520,1717204246588,-201.286739,0.00026385,2]
[328347521,1717204246598,-151.0,0.00026385,2]
[328347522,1717204246607,-292.119932,0.00026385,2]
[328347523,1717204246618,-151.0,0.00026385,2]
[328347524,1717204246628,-292.119932,0.00026385,2]
[328347525,1717204246638,-151.0,0.00026385,2]
[328347526,1717204246648,-151.0,0.00026385,2]
[328347527,1717204246657,-427.267559,0.00026385,2]
[328347528,1717204246667,-427.267559,0.00026385,2]
[328347529,1717204246677,-208.890863,0.00026385,2]
[328347538,1717204246784,-208.890863,0.00026385,2]
[328347540,1717204246793,-208.890863,0.00026385,2]
[328347542,1717204246802,-208.890863,0.00026385,2]
[328347544,1717204246811,-151.0,0.00026385,2]
[328347546,1717204246822,-151.0,0.00026385,2]
[328347548,1717204246834,-151.0,0.00026385,2]